[Event "*** Titled Tuesday Blitz"]
[Site "Chess.com"]
[Date "2020.04.07"]
[Round "9"]
[White "temus_galaktionov"]
[Black "GMBenjaminFinegold"]
[Result "1-0"]
[WhiteElo "2762"]
[BlackElo "2575"]
[TimeControl "180+1"]
[EndTime "14:48:14 PDT"]
[Termination "temus_galaktionov won by checkmate"]

1. d4 {[%clk 0:03:00.9]} 1... Nf6 {[%clk 0:02:56.7]} 2. Nf3 {[%clk 0:02:59.9]}
2... c5 {[%clk 0:02:55.1]} 3. d5 {[%clk 0:02:59.2]} 3... d6 {[%clk 0:02:55.5]}
4. c4 {[%clk 0:02:59.9]} 4... e5 {[%clk 0:02:55.3]} 5. g3 {[%clk 0:02:58.6]}
5... Be7 {[%clk 0:02:55.5]} 6. Bg2 {[%clk 0:02:58.3]} 6... Nbd7 {[%clk 0:02:56]}
7. O-O {[%clk 0:02:57.8]} 7... Nf8 {[%clk 0:02:55.9]} 8. Nc3 {[%clk 0:02:57.4]}
8... Ng6 {[%clk 0:02:56]} 9. Ne1 {[%clk 0:02:57.8]} 9... a6 {[%clk 0:02:54.2]}
10. a4 {[%clk 0:02:57]} 10... h5 {[%clk 0:02:54]} 11. f4 {[%clk 0:02:48.4]}
11... exf4 {[%clk 0:02:53.1]} 12. gxf4 {[%clk 0:02:49.3]} 12... h4 {[%clk
0:02:50.8]} 13. e4 {[%clk 0:02:46.5]} 13... h3 {[%clk 0:02:50.9]} 14. Bf3 {[%clk
0:02:44.1]} 14... Rh4 {[%clk 0:02:40.4]} 15. Nd3 {[%clk 0:02:40.8]} 15... Bg4
{[%clk 0:02:20.6]} 16. e5 {[%clk 0:02:31.9]} 16... Bxf3 {[%clk 0:02:20.1]} 17.
Qxf3 {[%clk 0:02:32.8]} 17... Ng4 {[%clk 0:02:16.3]} 18. e6 {[%clk 0:02:14.7]}
18... f5 {[%clk 0:02:10.2]} 19. Bd2 {[%clk 0:02:06.2]} 19... Bf6 {[%clk
0:02:07.1]} 20. a5 {[%clk 0:02:03.6]} 20... Bd4+ {[%clk 0:01:54]} 21. Kh1 {[%clk
0:02:03.4]} 21... Qf6 {[%clk 0:01:52.3]} 22. Ne2 {[%clk 0:01:50.1]} 22... Rh6
{[%clk 0:01:41.6]} 23. Rab1 {[%clk 0:01:35.1]} 23... Nh4 {[%clk 0:01:40]} 24.
Qg3 {[%clk 0:01:35.3]} 24... Rg6 {[%clk 0:01:32.3]} 25. Bc3 {[%clk 0:00:59.1]}
25... Ne3 {[%clk 0:01:17]} 26. Qxe3 {[%clk 0:00:53.1]} 26... Bxe3 {[%clk
0:01:17.1]} 27. Bxf6 {[%clk 0:00:52.5]} 27... gxf6 {[%clk 0:01:07.2]} 28. Ng3
{[%clk 0:00:51.8]} 28... O-O-O {[%clk 0:01:00.5]} 29. b4 {[%clk 0:00:51]} 29...
cxb4 {[%clk 0:00:55.5]} 30. Rxb4 {[%clk 0:00:51.9]} 30... Rdg8 {[%clk
0:00:54.7]} 31. c5 {[%clk 0:00:47.4]} 31... dxc5 {[%clk 0:00:50]} 32. Rc4 {[%clk
0:00:34.1]} 32... Rd8 {[%clk 0:00:47.3]} 33. Nxc5 {[%clk 0:00:30.3]} 33... Rxd5
{[%clk 0:00:34.3]} 34. e7 {[%clk 0:00:20.5]} 34... Rg8 {[%clk 0:00:31.9]} 35.
Nce4+ {[%clk 0:00:20.4]} 35... Kb8 {[%clk 0:00:16.5]} 36. Nxf6 {[%clk 0:00:20]}
36... Re8 {[%clk 0:00:07.5]} 37. Nxd5 {[%clk 0:00:17.8]} 37... Bd2 {[%clk
0:00:07.7]} 38. Rd1 {[%clk 0:00:16.9]} 38... Bxa5 {[%clk 0:00:07.3]} 39. Nh5
{[%clk 0:00:14.7]} 39... Ng6 {[%clk 0:00:07.4]} 40. Nhf6 {[%clk 0:00:13.9]}
40... Rxe7 {[%clk 0:00:08]} 41. Nxe7 {[%clk 0:00:13.7]} 41... Nxe7 {[%clk
0:00:08.9]} 42. Rd7 {[%clk 0:00:13.8]} 42... Ng6 {[%clk 0:00:08.5]} 43. Nd5
{[%clk 0:00:12.7]} 43... Nh4 {[%clk 0:00:08.2]} 44. Ra4 {[%clk 0:00:11.6]} 44...
Be1 {[%clk 0:00:06.5]} 45. Ra1 {[%clk 0:00:11.4]} 45... Bf2 {[%clk 0:00:06.3]}
46. Rb1 {[%clk 0:00:11.8]} 46... b5 {[%clk 0:00:03.4]} 47. Rd1 {[%clk 0:00:07]}
47... Nf3 {[%clk 0:00:02.4]} 48. Ne7 {[%clk 0:00:06.6]} 48... Nd4 {[%clk
0:00:02.8]} 49. R1xd4 {[%clk 0:00:05.6]} 49... Bxd4 {[%clk 0:00:01.7]} 50. Rxd4
{[%clk 0:00:06.5]} 50... Kc7 {[%clk 0:00:01.6]} 51. Nxf5 {[%clk 0:00:06.6]}
51... Kb6 {[%clk 0:00:02.5]} 52. Ne3 {[%clk 0:00:06.8]} 52... Ka5 {[%clk
0:00:03.4]} 53. f5 {[%clk 0:00:06.5]} 53... b4 {[%clk 0:00:04.3]} 54. f6 {[%clk
0:00:06.9]} 54... b3 {[%clk 0:00:05.2]} 55. f7 {[%clk 0:00:07]} 55... b2 {[%clk
0:00:06.1]} 56. Nc4+ {[%clk 0:00:07.3]} 56... Kb4 {[%clk 0:00:06.1]} 57. Nxb2+
{[%clk 0:00:08.2]} 57... Kc3 {[%clk 0:00:07]} 58. Rf4 {[%clk 0:00:07.3]} 58...
a5 {[%clk 0:00:07.9]} 59. f8=Q {[%clk 0:00:07]} 59... a4 {[%clk 0:00:08.8]} 60.
Qc5+ {[%clk 0:00:07.3]} 60... Kb3 {[%clk 0:00:08.7]} 61. Rf3+ {[%clk 0:00:07.5]}
61... Ka2 {[%clk 0:00:08.5]} 62. Qc4+ {[%clk 0:00:07.8]} 62... Ka1 {[%clk
0:00:08.2]} 63. Rf1+ {[%clk 0:00:08]} 63... Kxb2 {[%clk 0:00:08.4]} 64. Rf2+
{[%clk 0:00:08.7]} 64... Ka3 {[%clk 0:00:08.8]} 65. Qc3# {[%clk 0:00:08.8]} 1-0

[Event "*** Titled Tuesday Blitz"]
[Site "Chess.com"]
[Date "2020.04.07"]
[Round "9"]
[White "Pavlov_Sergey"]
[Black "VerdeNotte"]
[Result "1-0"]
[WhiteElo "2575"]
[BlackElo "2722"]
[TimeControl "180+1"]
[EndTime "14:48:17 PDT"]
[Termination "Pavlov_Sergey won by resignation"]

1. c4 {[%clk 0:03:00.9]} 1... e5 {[%clk 0:02:59.4]} 2. Nc3 {[%clk 0:03:00.4]}
2... Bb4 {[%clk 0:02:59]} 3. Qc2 {[%clk 0:02:59.4]} 3... Nf6 {[%clk 0:02:58.3]}
4. Nf3 {[%clk 0:02:59.8]} 4... Nc6 {[%clk 0:02:57.9]} 5. e3 {[%clk 0:03:00.3]}
5... O-O {[%clk 0:02:56.4]} 6. Nd5 {[%clk 0:02:59.5]} 6... Re8 {[%clk
0:02:52.7]} 7. Qf5 {[%clk 0:02:59.4]} 7... Be7 {[%clk 0:02:30]} 8. Nxe5 {[%clk
0:02:53.8]} 8... d6 {[%clk 0:02:21.6]} 9. Nxc6 {[%clk 0:02:49.8]} 9... bxc6
{[%clk 0:02:22.5]} 10. Nxe7+ {[%clk 0:02:47.3]} 10... Qxe7 {[%clk 0:02:21.2]}
11. Qc2 {[%clk 0:02:43.7]} 11... Ng4 {[%clk 0:02:13.4]} 12. h3 {[%clk
0:02:27.1]} 12... Qh4 {[%clk 0:02:12.6]} 13. g3 {[%clk 0:02:22]} 13... Qh6
{[%clk 0:02:12.3]} 14. Bg2 {[%clk 0:02:18.5]} 14... Nf6 {[%clk 0:02:09.6]} 15.
Bxc6 {[%clk 0:02:15]} 15... Bd7 {[%clk 0:01:53]} 16. Bxa8 {[%clk 0:02:12.5]}
16... Rxa8 {[%clk 0:01:53.9]} 17. b3 {[%clk 0:02:03.2]} 17... Bc6 {[%clk
0:01:51]} 18. Rf1 {[%clk 0:01:30.1]} 18... Qxh3 {[%clk 0:01:44.6]} 19. Bb2
{[%clk 0:01:30.2]} 19... Bg2 {[%clk 0:01:18.5]} 20. Rg1 {[%clk 0:01:29.1]} 20...
Ne4 {[%clk 0:01:18.7]} 21. d3 {[%clk 0:00:47.3]} 21... Ng5 {[%clk 0:01:14]} 22.
O-O-O {[%clk 0:00:47.2]} 22... Nf3 {[%clk 0:01:13.6]} 23. Qe2 {[%clk 0:00:39.1]}
23... Nxg1 {[%clk 0:01:09.4]} 24. Rxg1 {[%clk 0:00:39.6]} 24... Qh2 {[%clk
0:01:04.2]} 25. Re1 {[%clk 0:00:38.9]} 25... Bh3 {[%clk 0:00:46.1]} 26. Qf3
{[%clk 0:00:37.4]} 26... Re8 {[%clk 0:00:44.6]} 27. Rh1 {[%clk 0:00:36.6]} 27...
Qg2 {[%clk 0:00:42]} 28. Qxg2 {[%clk 0:00:36.4]} 28... Bxg2 {[%clk 0:00:42.9]}
29. Rg1 {[%clk 0:00:33.9]} 29... Bf3 {[%clk 0:00:41.6]} 30. g4 {[%clk
0:00:33.9]} 30... f6 {[%clk 0:00:31.7]} 31. Kd2 {[%clk 0:00:33.2]} 31... Kf7
{[%clk 0:00:30.9]} 32. e4 {[%clk 0:00:33.3]} 32... h5 {[%clk 0:00:30.8]} 33. g5
{[%clk 0:00:32.7]} 33... Bg4 {[%clk 0:00:26.4]} 34. gxf6 {[%clk 0:00:30.4]}
34... gxf6 {[%clk 0:00:27.3]} 35. Ke3 {[%clk 0:00:30.6]} 35... Rh8 {[%clk
0:00:25.4]} 36. f3 {[%clk 0:00:28.6]} 36... Bd7 {[%clk 0:00:22.3]} 37. f4 {[%clk
0:00:26.8]} 37... h4 {[%clk 0:00:22.4]} 38. e5 {[%clk 0:00:26.9]} 38... dxe5
{[%clk 0:00:22.1]} 39. fxe5 {[%clk 0:00:27.1]} 39... fxe5 {[%clk 0:00:22.2]} 40.
Bxe5 {[%clk 0:00:26.5]} 40... Re8 {[%clk 0:00:22.7]} 41. d4 {[%clk 0:00:22.7]}
41... h3 {[%clk 0:00:19.4]} 42. Rg7+ {[%clk 0:00:22.7]} 42... Ke6 {[%clk
0:00:18.8]} 43. Rh7 {[%clk 0:00:23.2]} 43... c5 {[%clk 0:00:14.4]} 44. Rxh3
{[%clk 0:00:21.5]} 44... cxd4+ {[%clk 0:00:12.4]} 45. Kxd4 {[%clk 0:00:22]}
45... Rd8 {[%clk 0:00:09.1]} 46. Rh6+ {[%clk 0:00:21.9]} 46... Kf7 {[%clk
0:00:09.5]} 47. Rd6 {[%clk 0:00:22]} 47... Ke8 {[%clk 0:00:09.9]} 48. Bf6 {[%clk
0:00:20.9]} 48... Rc8 {[%clk 0:00:08.5]} 49. c5 {[%clk 0:00:21.2]} 49... Rc6
{[%clk 0:00:08.5]} 50. Kd5 {[%clk 0:00:19.1]} 50... Rxd6+ {[%clk 0:00:08.2]} 51.
Kxd6 {[%clk 0:00:19.5]} 51... Bf5 {[%clk 0:00:07]} 52. c6 {[%clk 0:00:18.6]}
52... Bb1 {[%clk 0:00:05.7]} 53. a3 {[%clk 0:00:18.9]} 53... Bc2 {[%clk
0:00:05.1]} 54. b4 {[%clk 0:00:19.1]} 54... Kf7 {[%clk 0:00:04.1]} 55. Bd4
{[%clk 0:00:18]} 55... Bf5 {[%clk 0:00:04.6]} 56. Bxa7 {[%clk 0:00:17.3]} 56...
Ke8 {[%clk 0:00:04.7]} 57. b5 {[%clk 0:00:17.2]} 57... Kd8 {[%clk 0:00:05]} 58.
b6 {[%clk 0:00:17.4]} 58... Bd7 {[%clk 0:00:05.1]} 59. b7 {[%clk 0:00:17.2]} 1-0

[Event "*** Titled Tuesday Blitz"]
[Site "Chess.com"]
[Date "2020.04.07"]
[Round "9"]
[White "Abdimalik_Abdisalimov"]
[Black "attack2mateU"]
[Result "1-0"]
[WhiteElo "2851"]
[BlackElo "2672"]
[TimeControl "180+1"]
[EndTime "14:48:18 PDT"]
[Termination "Abdimalik_Abdisalimov won by resignation"]

1. d4 {[%clk 0:03:00.9]} 1... Nf6 {[%clk 0:03:00]} 2. c4 {[%clk 0:03:00.2]} 2...
g6 {[%clk 0:03:00.3]} 3. Nc3 {[%clk 0:02:09]} 3... d5 {[%clk 0:02:59.3]} 4. cxd5
{[%clk 0:02:09.9]} 4... Nxd5 {[%clk 0:03:00]} 5. e4 {[%clk 0:02:09.1]} 5... Nxc3
{[%clk 0:02:58.7]} 6. bxc3 {[%clk 0:02:10]} 6... Bg7 {[%clk 0:02:59.3]} 7. Bc4
{[%clk 0:02:09.5]} 7... O-O {[%clk 0:02:58.6]} 8. Ne2 {[%clk 0:02:10]} 8... c5
{[%clk 0:02:58.4]} 9. O-O {[%clk 0:02:10.5]} 9... Nc6 {[%clk 0:02:56.6]} 10. Be3
{[%clk 0:02:10.9]} 10... b6 {[%clk 0:02:56.4]} 11. Qd2 {[%clk 0:02:08.6]} 11...
Bb7 {[%clk 0:02:54.1]} 12. Rac1 {[%clk 0:02:08.8]} 12... cxd4 {[%clk 0:02:47.1]}
13. cxd4 {[%clk 0:02:08.8]} 13... Rc8 {[%clk 0:02:45.6]} 14. h4 {[%clk
0:02:08.2]} 14... Qd7 {[%clk 0:02:30.5]} 15. h5 {[%clk 0:02:07.7]} 15... Rfd8
{[%clk 0:02:30.1]} 16. h6 {[%clk 0:01:58.8]} 16... Bxd4 {[%clk 0:02:12.2]} 17.
Nxd4 {[%clk 0:01:58.7]} 17... Nxd4 {[%clk 0:02:12.2]} 18. Bd5 {[%clk 0:01:58.9]}
18... Ne6 {[%clk 0:01:49.6]} 19. Rxc8 {[%clk 0:01:54.9]} 19... Rxc8 {[%clk
0:01:36.2]} 20. Rd1 {[%clk 0:01:54.3]} 20... Bxd5 {[%clk 0:01:12.4]} 21. exd5
{[%clk 0:01:55.2]} 21... Nf8 {[%clk 0:01:11.1]} 22. Qb2 {[%clk 0:01:50.6]} 22...
f6 {[%clk 0:01:11.1]} 23. d6 {[%clk 0:01:50.2]} 23... Rc6 {[%clk 0:01:01]} 24.
Qb3+ {[%clk 0:01:50]} 24... e6 {[%clk 0:00:58.7]} 25. Bf4 {[%clk 0:01:30.8]}
25... Kf7 {[%clk 0:00:58.3]} 26. a4 {[%clk 0:01:21.2]} 26... Ke8 {[%clk
0:00:58.4]} 27. a5 {[%clk 0:01:20.7]} 27... e5 {[%clk 0:00:58.1]} 28. axb6
{[%clk 0:01:16.9]} 28... axb6 {[%clk 0:00:57.2]} 29. Be3 {[%clk 0:01:13.4]}
29... Rxd6 {[%clk 0:00:55.2]} 30. Ra1 {[%clk 0:01:13.9]} 30... Rd3 {[%clk
0:00:43.7]} 31. Ra8+ {[%clk 0:01:06.8]} 31... Ke7 {[%clk 0:00:39.1]} 32. Qg8
{[%clk 0:01:03.1]} 32... Rxe3 {[%clk 0:00:20]} 33. Qxf8+ {[%clk 0:01:01.6]}
33... Ke6 {[%clk 0:00:20.4]} 34. Re8+ {[%clk 0:00:59.4]} 34... Kf5 {[%clk
0:00:20.4]} 35. fxe3 {[%clk 0:00:40.8]} 35... Qd1+ {[%clk 0:00:19.9]} 36. Kh2
{[%clk 0:00:41.2]} 36... Qe1 {[%clk 0:00:04.9]} 37. e4+ {[%clk 0:00:18.4]} 37...
Qxe4 {[%clk 0:00:04.5]} 38. Qa3 {[%clk 0:00:17.8]} 38... Qf4+ {[%clk 0:00:04.7]}
39. Qg3 {[%clk 0:00:17.8]} 39... Qxh6+ {[%clk 0:00:05]} 40. Qh3+ {[%clk
0:00:18.3]} 40... Qxh3+ {[%clk 0:00:05]} 41. Kxh3 {[%clk 0:00:19.2]} 41... h5
{[%clk 0:00:05.1]} 42. Kg3 {[%clk 0:00:19.5]} 42... g5 {[%clk 0:00:05.2]} 43.
Rb8 {[%clk 0:00:19.4]} 43... h4+ {[%clk 0:00:05.6]} 44. Kf3 {[%clk 0:00:19.8]}
44... g4+ {[%clk 0:00:05.7]} 45. Ke3 {[%clk 0:00:19.6]} 45... h3 {[%clk
0:00:05]} 46. gxh3 {[%clk 0:00:20.5]} 46... gxh3 {[%clk 0:00:05.8]} 47. Kf3
{[%clk 0:00:14.6]} 47... h2 {[%clk 0:00:03.6]} 48. Kg2 {[%clk 0:00:14.7]} 48...
Ke4 {[%clk 0:00:03.4]} 49. Kxh2 {[%clk 0:00:12.5]} 49... f5 {[%clk 0:00:03.6]}
50. Kg2 {[%clk 0:00:13.4]} 50... f4 {[%clk 0:00:02.8]} 51. Kf2 {[%clk
0:00:13.9]} 51... Kd3 {[%clk 0:00:02.8]} 52. Rxb6 {[%clk 0:00:14.2]} 52... e4
{[%clk 0:00:03.4]} 53. Rd6+ {[%clk 0:00:12.9]} 53... Kc3 {[%clk 0:00:03.5]} 54.
Rd8 {[%clk 0:00:12.6]} 54... Kc2 {[%clk 0:00:03.7]} 55. Ke2 {[%clk 0:00:12.5]}
55... Kc3 {[%clk 0:00:03.3]} 56. Re8 {[%clk 0:00:12.9]} 56... Kd4 {[%clk
0:00:03.6]} 57. Rd8+ {[%clk 0:00:13.2]} 57... Ke5 {[%clk 0:00:03.8]} 58. Kf2
{[%clk 0:00:13.5]} 58... Kf5 {[%clk 0:00:02.4]} 59. Re8 {[%clk 0:00:13.8]} 1-0

[Event "*** Titled Tuesday Blitz"]
[Site "Chess.com"]
[Date "2020.04.07"]
[Round "9"]
[White "Gennady_Kozlov"]
[Black "KarstenHansch"]
[Result "0-1"]
[WhiteElo "2573"]
[BlackElo "2462"]
[TimeControl "180+1"]
[EndTime "14:48:18 PDT"]
[Termination "KarstenHansch won by resignation"]

1. b3 {[%clk 0:03:00.9]} 1... e5 {[%clk 0:02:59.4]} 2. Bb2 {[%clk 0:02:56.6]}
2... Nc6 {[%clk 0:02:58.5]} 3. e4 {[%clk 0:02:56.8]} 3... Bc5 {[%clk 0:02:56.6]}
4. Bc4 {[%clk 0:02:50.2]} 4... Nf6 {[%clk 0:02:54.2]} 5. d3 {[%clk 0:02:48.8]}
5... d6 {[%clk 0:02:53.1]} 6. Nf3 {[%clk 0:02:46.3]} 6... a6 {[%clk 0:02:52.5]}
7. a4 {[%clk 0:02:45.5]} 7... Na5 {[%clk 0:02:51]} 8. h3 {[%clk 0:02:43.2]} 8...
Nxc4 {[%clk 0:02:50.9]} 9. bxc4 {[%clk 0:02:42.3]} 9... Be6 {[%clk 0:02:49.9]}
10. Nbd2 {[%clk 0:02:42.1]} 10... c6 {[%clk 0:02:49.4]} 11. Nb3 {[%clk
0:02:42.2]} 11... Ba7 {[%clk 0:02:49.2]} 12. Qd2 {[%clk 0:02:41.6]} 12... O-O
{[%clk 0:02:47.7]} 13. c5 {[%clk 0:02:38.9]} 13... Bxb3 {[%clk 0:02:42.5]} 14.
cxb3 {[%clk 0:02:38.2]} 14... Bxc5 {[%clk 0:02:42.4]} 15. b4 {[%clk 0:02:38.4]}
15... Ba7 {[%clk 0:02:41.5]} 16. O-O {[%clk 0:02:38.3]} 16... a5 {[%clk
0:02:39.3]} 17. bxa5 {[%clk 0:02:35.3]} 17... Bb8 {[%clk 0:02:35.5]} 18. Bc3
{[%clk 0:02:31.7]} 18... Bc7 {[%clk 0:02:35.5]} 19. Rfb1 {[%clk 0:02:31.1]}
19... Ra7 {[%clk 0:02:32.4]} 20. g4 {[%clk 0:02:18.7]} 20... Qa8 {[%clk
0:02:20.4]} 21. g5 {[%clk 0:02:18.4]} 21... Nd7 {[%clk 0:02:19.6]} 22. d4 {[%clk
0:02:16.6]} 22... exd4 {[%clk 0:02:15.3]} 23. Nxd4 {[%clk 0:02:15.3]} 23... Bxa5
{[%clk 0:02:02.1]} 24. Bxa5 {[%clk 0:02:11.5]} 24... Rxa5 {[%clk 0:02:02]} 25.
Nf5 {[%clk 0:02:12.4]} 25... Ne5 {[%clk 0:01:59.6]} 26. Qxd6 {[%clk 0:02:03.8]}
26... Rd8 {[%clk 0:01:54.6]} 27. Qc7 {[%clk 0:01:56.2]} 27... Rd7 {[%clk
0:01:46.2]} 28. Qb6 {[%clk 0:01:54.6]} 28... Nf3+ {[%clk 0:01:45.1]} 29. Kh1
{[%clk 0:01:53.5]} 29... Nxg5 {[%clk 0:01:45]} 30. Rg1 {[%clk 0:01:52.6]} 30...
Ne6 {[%clk 0:01:35]} 31. Rad1 {[%clk 0:01:46.7]} 31... Rxd1 {[%clk 0:01:33.3]}
32. Rxd1 {[%clk 0:01:46.3]} 32... Rxa4 {[%clk 0:01:33.6]} 33. f3 {[%clk
0:01:43.7]} 33... Ra1 {[%clk 0:01:32.6]} 34. Qg1 {[%clk 0:01:39.5]} 34... Rxd1
{[%clk 0:01:29.7]} 35. Qxd1 {[%clk 0:01:40.4]} 35... g6 {[%clk 0:01:27.7]} 36.
Nh6+ {[%clk 0:01:39.5]} 36... Kg7 {[%clk 0:01:25.8]} 37. Ng4 {[%clk 0:01:40]}
37... Qa2 {[%clk 0:01:24.4]} 38. Qd7 {[%clk 0:01:29.3]} 38... Qb2 {[%clk
0:01:15.1]} 39. Qd6 {[%clk 0:01:15.4]} 39... Qd4 {[%clk 0:01:12.8]} 40. Qg3
{[%clk 0:01:14.3]} 40... Qd1+ {[%clk 0:01:11.8]} 41. Kh2 {[%clk 0:01:13.6]}
41... Qd2+ {[%clk 0:01:11.9]} 42. Kh1 {[%clk 0:01:13.3]} 42... Nf4 {[%clk
0:01:12]} 43. Nf2 {[%clk 0:01:11.5]} 43... Qe1+ {[%clk 0:01:09.9]} 44. Kh2
{[%clk 0:01:11]} 44... b5 {[%clk 0:01:03.2]} 45. h4 {[%clk 0:01:10.5]} 45... b4
{[%clk 0:01:03]} 46. Qxf4 {[%clk 0:01:10.4]} 46... Qxf2+ {[%clk 0:01:02.6]} 47.
Kh3 {[%clk 0:01:11.3]} 47... Qd4 {[%clk 0:01:01.1]} 48. h5 {[%clk 0:01:09.9]}
48... gxh5 {[%clk 0:01:00.2]} 49. Qg5+ {[%clk 0:01:06.1]} 49... Kf8 {[%clk
0:00:58.4]} 50. Qh6+ {[%clk 0:01:05.2]} 50... Ke7 {[%clk 0:00:58.5]} 51. Qg5+
{[%clk 0:01:04.7]} 51... Kd7 {[%clk 0:00:56.1]} 52. Qf5+ {[%clk 0:01:04.1]}
52... Kc7 {[%clk 0:00:56.1]} 53. Kg2 {[%clk 0:01:00.5]} 53... Qc4 {[%clk
0:00:49.3]} 54. Qe5+ {[%clk 0:00:57.9]} 54... Kb6 {[%clk 0:00:48.4]} 55. Qb8+
{[%clk 0:00:57.6]} 55... Ka5 {[%clk 0:00:47.4]} 56. e5 {[%clk 0:00:57.7]} 56...
b3 {[%clk 0:00:45.4]} 57. Kg3 {[%clk 0:00:57.3]} 57... Qb5 {[%clk 0:00:43.6]}
58. Qa7+ {[%clk 0:00:57.2]} 58... Kb4 {[%clk 0:00:43.6]} 59. Qa1 {[%clk
0:00:56.7]} 59... Kc5 {[%clk 0:00:41.6]} 60. Qc3+ {[%clk 0:00:55.4]} 60... Kd5
{[%clk 0:00:41.9]} 61. Qd2+ {[%clk 0:00:51.8]} 61... Kxe5 {[%clk 0:00:41.4]} 62.
Qe3+ {[%clk 0:00:50.5]} 62... Kf6 {[%clk 0:00:41.4]} 63. Qh6+ {[%clk 0:00:50]}
63... Ke7 {[%clk 0:00:39.9]} 64. Qe3+ {[%clk 0:00:50.5]} 64... Kd7 {[%clk
0:00:38.7]} 65. Qa7+ {[%clk 0:00:50.4]} 65... Kd6 {[%clk 0:00:36.7]} 66. Qd4+
{[%clk 0:00:49.5]} 66... Qd5 {[%clk 0:00:36.9]} 67. Qb4+ {[%clk 0:00:49.4]}
67... Ke6 {[%clk 0:00:36.3]} 68. f4 {[%clk 0:00:47]} 68... c5 {[%clk 0:00:29.9]}
69. Qb6+ {[%clk 0:00:45.6]} 69... Ke7 {[%clk 0:00:30]} 70. Kh4 {[%clk
0:00:44.2]} 70... c4 {[%clk 0:00:27.8]} 71. Qc7+ {[%clk 0:00:43.4]} 71... Kf6
{[%clk 0:00:27.3]} 72. Qb6+ {[%clk 0:00:42.6]} 72... Kg7 {[%clk 0:00:27.2]} 73.
f5 {[%clk 0:00:40.2]} 73... Qe4+ {[%clk 0:00:27]} 74. Kg3 {[%clk 0:00:36.5]}
74... Qxf5 {[%clk 0:00:27.1]} 75. Qd4+ {[%clk 0:00:34.7]} 75... Qf6 {[%clk
0:00:27.2]} 76. Qxc4 {[%clk 0:00:34.7]} 76... Qg6+ {[%clk 0:00:27.6]} 77. Kh2
{[%clk 0:00:33.7]} 77... Qc2+ {[%clk 0:00:27.5]} 78. Kg3 {[%clk 0:00:32.3]} 0-1

[Event "*** Titled Tuesday Blitz"]
[Site "Chess.com"]
[Date "2020.04.07"]
[Round "9"]
[White "josiwales"]
[Black "RestartingChess"]
[Result "0-1"]
[WhiteElo "2494"]
[BlackElo "2387"]
[TimeControl "180+1"]
[EndTime "14:48:18 PDT"]
[Termination "RestartingChess won by resignation"]

1. e4 {[%clk 0:03:00.9]} 1... d5 {[%clk 0:02:58.5]} 2. exd5 {[%clk 0:02:59.9]}
2... Qxd5 {[%clk 0:02:59.4]} 3. Nc3 {[%clk 0:02:59.7]} 3... Qd6 {[%clk
0:02:59.9]} 4. Nf3 {[%clk 0:03:00.4]} 4... Nc6 {[%clk 0:03:00.2]} 5. d4 {[%clk
0:03:01.3]} 5... a6 {[%clk 0:03:00.7]} 6. h3 {[%clk 0:03:00.4]} 6... Nf6 {[%clk
0:03:01.1]} 7. Bc4 {[%clk 0:03:00.7]} 7... Bf5 {[%clk 0:03:00.9]} 8. O-O {[%clk
0:03:01]} 8... e6 {[%clk 0:03:01.3]} 9. Be3 {[%clk 0:03:01.3]} 9... Be7 {[%clk
0:03:01.4]} 10. a3 {[%clk 0:02:59.9]} 10... O-O {[%clk 0:03:01.1]} 11. Re1
{[%clk 0:02:59]} 11... Rad8 {[%clk 0:03:01]} 12. Qd2 {[%clk 0:02:59]} 12... Nd5
{[%clk 0:02:59.4]} 13. Nxd5 {[%clk 0:02:56.3]} 13... exd5 {[%clk 0:03:00.3]} 14.
Bf4 {[%clk 0:02:54.2]} 14... Qd7 {[%clk 0:02:56.4]} 15. Bd3 {[%clk 0:02:54.6]}
15... Bxd3 {[%clk 0:02:42.7]} 16. Qxd3 {[%clk 0:02:55.5]} 16... Bf6 {[%clk
0:02:43.2]} 17. Re3 {[%clk 0:02:42.4]} 17... Rfe8 {[%clk 0:02:42.6]} 18. Rae1
{[%clk 0:02:41.3]} 18... Rxe3 {[%clk 0:02:38.2]} 19. Rxe3 {[%clk 0:02:38.9]}
19... h6 {[%clk 0:02:36.8]} 20. c3 {[%clk 0:02:31.4]} 20... Na5 {[%clk
0:02:33.8]} 21. Ne5 {[%clk 0:02:27]} 21... Bxe5 {[%clk 0:02:32.9]} 22. Bxe5
{[%clk 0:02:27.9]} 22... Nc4 {[%clk 0:02:33.4]} 23. b3 {[%clk 0:02:25]} 23...
Nxe3 {[%clk 0:02:31.7]} 24. fxe3 {[%clk 0:02:22]} 24... c6 {[%clk 0:02:30.3]}
25. Kh2 {[%clk 0:02:18.9]} 25... Re8 {[%clk 0:02:29.6]} 26. b4 {[%clk
0:02:18.2]} 26... f6 {[%clk 0:02:29.2]} 27. Bg3 {[%clk 0:02:18.1]} 27... Qe6
{[%clk 0:02:26.2]} 28. Bf4 {[%clk 0:02:18.4]} 28... Qe4 {[%clk 0:02:24.8]} 29.
Qf1 {[%clk 0:02:13.5]} 29... Kf7 {[%clk 0:02:19.2]} 30. h4 {[%clk 0:02:06.7]}
30... Ke7 {[%clk 0:01:45.1]} 31. h5 {[%clk 0:02:01]} 31... Rg8 {[%clk
0:01:12.5]} 32. a4 {[%clk 0:01:52.2]} 32... g5 {[%clk 0:01:12.1]} 33. Bg3 {[%clk
0:01:52]} 33... Qxe3 {[%clk 0:01:02.8]} 34. Qf5 {[%clk 0:01:45.1]} 34... Qe4
{[%clk 0:01:01.9]} 35. Qf1 {[%clk 0:01:33.2]} 35... f5 {[%clk 0:00:59.9]} 36.
Be5 {[%clk 0:01:30.6]} 36... b5 {[%clk 0:00:38.1]} 37. axb5 {[%clk 0:01:30.4]}
37... cxb5 {[%clk 0:00:39]} 38. Qa1 {[%clk 0:01:27.4]} 38... g4 {[%clk
0:00:12.9]} 39. Qxa6 {[%clk 0:01:18.9]} 39... g3+ {[%clk 0:00:12.4]} 40. Bxg3
{[%clk 0:01:19.2]} 40... Rg5 {[%clk 0:00:08.1]} 41. Qxh6 {[%clk 0:01:14]} 41...
Qg4 {[%clk 0:00:07.4]} 42. Qd6+ {[%clk 0:01:07.2]} 42... Kf7 {[%clk 0:00:06.4]}
43. Qxd5+ {[%clk 0:01:04.5]} 43... Kg7 {[%clk 0:00:03.1]} 44. Be5+ {[%clk
0:01:04.6]} 44... Kh6 {[%clk 0:00:03.5]} 45. Qe6+ {[%clk 0:00:57.9]} 45... Kxh5
{[%clk 0:00:03.9]} 46. Qe8+ {[%clk 0:00:50]} 46... Rg6 {[%clk 0:00:04]} 47. Qh8+
{[%clk 0:00:49]} 47... Kg5 {[%clk 0:00:04.6]} 48. Qd8+ {[%clk 0:00:19.8]} 48...
Kh5 {[%clk 0:00:04.7]} 49. Qd5 {[%clk 0:00:18]} 49... Qh4+ {[%clk 0:00:01.7]}
50. Kg1 {[%clk 0:00:18.4]} 50... Qg4 {[%clk 0:00:02.6]} 51. Kf2 {[%clk
0:00:15.3]} 51... Qh4+ {[%clk 0:00:02.5]} 52. Ke2 {[%clk 0:00:14.1]} 52... Qg4+
{[%clk 0:00:01.9]} 53. Qf3 {[%clk 0:00:13.7]} 53... Rg5 {[%clk 0:00:02.4]} 54.
Qxg4+ {[%clk 0:00:12.7]} 54... Kxg4 {[%clk 0:00:03.3]} 55. d5 {[%clk 0:00:09.7]}
55... f4 {[%clk 0:00:03.9]} 56. Bd4 {[%clk 0:00:06.5]} 56... Rxd5 {[%clk
0:00:04.2]} 57. Kd3 {[%clk 0:00:06.7]} 57... Kg3 {[%clk 0:00:04.6]} 58. Ke4
{[%clk 0:00:06.7]} 58... Rd8 {[%clk 0:00:04.7]} 59. Kf5 {[%clk 0:00:03.9]} 59...
Rf8+ {[%clk 0:00:04.1]} 60. Ke4 {[%clk 0:00:04.4]} 60... Kxg2 {[%clk 0:00:04.3]}
61. c4 {[%clk 0:00:04.2]} 61... bxc4 {[%clk 0:00:04.4]} 62. b5 {[%clk
0:00:05.1]} 62... f3 {[%clk 0:00:05.3]} 63. b6 {[%clk 0:00:05]} 63... f2 {[%clk
0:00:05.9]} 64. Bxf2 {[%clk 0:00:05.3]} 64... Kxf2 {[%clk 0:00:05.9]} 65. Kd4
{[%clk 0:00:06.2]} 65... Rc8 {[%clk 0:00:05.2]} 66. b7 {[%clk 0:00:05.9]} 66...
Rb8 {[%clk 0:00:05.7]} 67. Kxc4 {[%clk 0:00:06.8]} 67... Rxb7 {[%clk 0:00:06.3]}
0-1